bitfinex/quotes_BTCUSD_20250316
["timestamp","ask_amount","ask_price","bid_price","bid_amount"]
[1742086680095,0.012181,84442.0,84441.0,0.01203663]
[1742086680304,0.249029,84442.0,84441.0,0.01203663]
[1742086681951,0.27124043,84442.0,84441.0,0.01203663]
[1742086683393,0.28980753,84442.0,84441.0,0.01203663]
[1742086684522,0.2675961,84442.0,84441.0,0.01203663]
[1742086685477,0.0189061,84442.0,84441.0,0.09063663]
[1742086686848,0.0189061,84442.0,84441.0,0.10247863]
[1742086687470,0.000339,84442.0,84441.0,0.10247863]
[1742086687674,0.000339,84442.0,84441.0,0.15266281]
[1742086688652,0.000339,84442.0,84441.0,0.15147863]
[1742086688858,0.000339,84442.0,84441.0,0.15266272]
[1742086691602,0.000339,84442.0,84441.0,0.15147863]
[1742086692368,0.000339,84442.0,84441.0,0.15266274]
[1742086696354,0.000339,84442.0,84441.0,0.15147863]
[1742086699209,0.24699825,84452.0,84443.0,0.236846]
[1742086699412,0.011841,84450.0,84445.0,0.236839]
[1742086699723,0.01856527,84449.0,84445.0,0.236839]
[1742086699910,0.011841,84450.0,84446.0,0.011856]
[1742086700159,0.24699825,84452.0,84447.0,0.236834]
[1742086700554,0.24699825,84452.0,84448.0,0.01185392]
[1742086700734,0.24699825,84452.0,84449.0,0.13488]
[1742086701101,0.24699825,84452.0,84450.0,0.01185184]
[1742086702634,0.26556301,84452.0,84450.0,0.01185184]
[1742086709310,0.01856476,84452.0,84450.0,0.01185184]
[1742086710691,0.01856476,84452.0,84450.0,0.24867584]
[1742086712500,0.01856476,84452.0,84450.0,0.01185184]
[1742086712912,0.01890376,84452.0,84450.0,0.01185184]
[1742086713116,0.01890376,84452.0,84449.0,0.13488]
[1742086713515,0.01890376,84452.0,84450.0,0.01185262]
[1742086713979,0.01890376,84452.0,84449.0,0.13488]
[1742086714356,0.01890376,84452.0,84450.0,0.01185262]
[1742086714761,0.01890376,84452.0,84449.0,0.13488]
[1742086714995,0.25572376,84452.0,84449.0,0.13488]
[1742086715188,0.25572376,84452.0,84450.0,0.01185262]
[1742086715393,0.25572376,84452.0,84449.0,0.13488]
[1742086715616,0.26756476,84452.0,84450.0,0.01185262]
[1742086715995,0.26756476,84452.0,84449.0,0.13488]
[1742086716323,0.26756476,84452.0,84450.0,0.01185262]
[1742086720422,0.26756476,84452.0,84449.0,0.13464]
[1742086720627,0.01890376,84452.0,84451.0,0.01185157]
[1742086720835,0.01890376,84452.0,84450.0,0.24867862]
[1742086721048,0.01890376,84452.0,84451.0,0.01185157]
[1742086721283,0.01890376,84452.0,84451.0,0.14799257]
[1742086721494,0.000339,84452.0,84451.0,0.136141]
[1742086721704,0.000339,84452.0,84451.0,0.14799171]
[1742086724271,0.01890249,84452.0,84451.0,0.14799171]
[1742086736935,0.01890249,84452.0,84451.0,0.14816121]
[1742086741625,0.0094518,84466.0,84455.0,0.236812]
[1742086741879,0.011838,84467.0,84462.0,0.236791]
[1742086742103,0.548616,84468.0,84462.0,0.236791]
[1742086742327,0.548616,84468.0,84463.0,0.01183335]
[1742086743548,0.548616,84468.0,84463.0,0.24862135]
[1742086743883,0.536772,84470.0,84463.0,0.24862135]
[1742086744078,0.236778,84468.0,84463.0,0.24862135]
[1742086744896,0.01856246,84467.0,84463.0,0.24862135]
[1742086745323,0.31856246,84467.0,84463.0,0.24862135]
[1742086746942,0.31856246,84467.0,84466.0,0.236781]
[1742086746943,0.01856246,84467.0,84466.0,0.236781]
[1742086747400,0.01856246,84467.0,84466.0,0.24861093]
[1742086748319,0.01856246,84467.0,84466.0,0.01182993]
[1742086748722,0.01856246,84467.0,84465.0,0.236781]
[1742086748966,0.01856246,84467.0,84466.0,0.01182993]
[1742086749196,0.01856246,84467.0,84464.0,0.236785]
[1742086749399,0.01856246,84467.0,84465.0,0.01183097]
[1742086750263,0.01856246,84467.0,84465.0,0.24861297]
[1742086752820,0.01856246,84467.0,84466.0,0.01117108]
[1742086755687,0.01856246,84467.0,84464.0,0.236785]
[1742086755864,0.31856246,84467.0,84466.0,0.01117108]
[1742086756075,0.31856246,84467.0,84465.0,0.01117212]
[1742086756245,0.31856246,84467.0,84466.0,0.01117108]
[1742086756657,0.31856246,84467.0,84464.0,0.236785]
[1742086756864,0.31856246,84467.0,84466.0,0.01117108]
[1742086757062,0.31856246,84467.0,84465.0,0.01117212]
[1742086757275,0.31856246,84467.0,84466.0,0.01117108]
[1742086757823,0.31856246,84467.0,84464.0,0.236786]
[1742086758077,0.31856246,84467.0,84466.0,0.01117108]
[1742086758285,0.01856246,84467.0,84465.0,0.24795312]
[1742086758484,0.01856246,84467.0,84466.0,0.01117108]
[1742086758963,0.01856246,84467.0,84464.0,0.236786]
[1742086759204,0.01856246,84467.0,84466.0,0.01117108]
[1742086759376,0.01856246,84467.0,84465.0,0.01117212]
[1742086759608,0.01856246,84467.0,84466.0,0.01117108]
[1742086759897,0.01856246,84467.0,84462.0,0.236791]
[1742086760132,0.01856246,84467.0,84466.0,0.01117108]
[1742086760352,0.01856246,84467.0,84462.0,0.236791]
[1742086760573,0.01856246,84467.0,84466.0,0.01117108]
[1742086760749,0.01856246,84467.0,84462.0,0.236791]
[1742086760966,0.01856246,84467.0,84466.0,0.01117108]
[1742086761196,0.01856246,84467.0,84462.0,0.236791]
[1742086761391,0.01856246,84467.0,84466.0,0.01117108]
[1742086761596,0.01856246,84467.0,84463.0,0.236788]
[1742086761799,0.01856246,84467.0,84466.0,0.01117108]
[1742086761948,0.01890126,84467.0,84465.0,0.0001694]
[1742086762134,0.01890126,84467.0,84466.0,0.01117108]
[1742086770752,0.03073926,84467.0,84466.0,0.01117108]
[1742086773873,0.24862,84466.0,84465.0,0.0001694]
[1742086798066,0.248959,84466.0,84465.0,0.0001694]
[1742086801005,0.236781,84466.0,84465.0,0.0001694]
[1742086801194,0.26718289,84466.0,84465.0,0.0001694]
[1742086801575,0.24862,84466.0,84465.0,0.0001694]
[1742086803652,0.011839,84466.0,84465.0,0.0001694]
[1742086804054,0.20441496,84469.0,84465.0,0.0001694]
[1742086804459,0.011838,84467.0,84465.0,0.0001694]
[1742086804948,0.248619,84467.0,84465.0,0.0001694]
[1742086806994,0.011838,84468.0,84465.0,0.0001694]
[1742086806995,0.248616,84468.0,84465.0,0.0001694]
[1742086807632,0.011838,84468.0,84465.0,0.0001694]
[1742086807836,0.20441496,84469.0,84465.0,0.0001694]
[1742086809189,0.22297761,84469.0,84465.0,0.0001694]
[1742086810321,0.000339,84468.0,84465.0,0.0001694]
[1742086811584,0.237116,84468.0,84465.0,0.0001694]
[1742086811792,0.248954,84468.0,84465.0,0.0001694]
[1742086812417,0.011838,84467.0,84465.0,0.0001694]
[1742086813768,0.248618,84467.0,84465.0,0.0001694]
[1742086814984,0.011838,84467.0,84465.0,0.0001694]
[1742086815830,0.000339,84468.0,84465.0,0.0001694]
[1742086817234,0.237116,84468.0,84465.0,0.0001694]
[1742086817449,0.248954,84468.0,84465.0,0.0001694]
[1742086817873,0.248954,84468.0,84466.0,0.01116941]
[1742086821045,0.012177,84468.0,84466.0,0.01116941]
[1742086822642,0.000339,84468.0,84466.0,0.01116941]
[1742086823507,0.000339,84468.0,84466.0,0.24795041]
[1742086825439,0.000339,84468.0,84467.0,0.091538]
[1742086826159,0.000339,84468.0,84467.0,0.1027052]
[1742086828622,0.01890053,84468.0,84467.0,0.1027052]
[1742086845755,0.01879927,84468.0,84467.0,0.1027052]
[1742086846226,0.01879927,84468.0,84467.0,0.1030442]
[1742086855458,0.01879927,84468.0,84467.0,0.14992798]
[1742086855707,0.00023774,84468.0,84467.0,0.14992798]
[1742086875381,0.00023774,84468.0,84467.0,0.1487442]
[1742086875811,0.00023774,84468.0,84467.0,0.2809042]
[1742086877494,0.00023774,84468.0,84467.0,0.1487442]
[1742086877868,0.00023774,84468.0,84467.0,0.0115062]
[1742086881362,0.01879843,84468.0,84467.0,0.0115062]
[1742086882035,0.03063643,84468.0,84467.0,0.0115062]
[1742086882263,0.10713643,84468.0,84467.0,0.0115062]
[1742086884080,0.10713643,84468.0,84467.0,0.000339]
[1742086885359,0.100402,84468.0,84467.0,0.000339]
[1742086886014,0.088338,84468.0,84467.0,0.000339]
[1742086888957,0.10690077,84468.0,84467.0,0.000339]
[1742086891250,0.237114,84469.0,84467.0,0.000339]
[1742086891251,0.35238991,84469.0,84467.0,0.000339]
[1742086891665,0.01856263,84468.0,84467.0,0.000339]
[1742086892413,0.03040063,84468.0,84467.0,0.000339]
[1742086893461,0.03057013,84468.0,84467.0,0.000339]
[1742086894397,0.01873213,84468.0,84467.0,0.01089656]
[1742086894616,0.03057013,84468.0,84467.0,0.000339]
[1742086895230,0.03057013,84468.0,84467.0,0.01089656]
[1742086897644,0.53184221,84470.0,84467.0,0.01089656]
[1742086897848,0.53188367,84470.0,84467.0,0.01089656]
[1742086898256,0.011838,84468.0,84467.0,0.01089656]
[1742086900089,0.011838,84468.0,84467.0,0.000339]
[1742086901059,0.03040032,84468.0,84467.0,0.000339]
[1742086910161,0.03040032,84468.0,84467.0,0.01089597]
[1742086910394,0.03040032,84468.0,84467.0,0.000339]
[1742086910598,0.03040032,84468.0,84467.0,0.01089597]
[1742086910802,0.03040032,84468.0,84467.0,0.000339]
[1742086911347,0.03040032,84468.0,84467.0,0.01089597]
[1742086911525,0.03040032,84468.0,84467.0,0.000339]
[1742086911762,0.03040032,84468.0,84467.0,0.01089597]
[1742086911962,0.03040032,84468.0,84467.0,0.000339]
[1742086912176,0.03040032,84468.0,84467.0,0.01089597]
[1742086912346,0.03040032,84468.0,84467.0,0.000339]
[1742086912512,0.03040032,84468.0,84467.0,0.01089597]
[1742086921328,0.01856232,84468.0,84467.0,0.01089597]
[1742086921747,0.01856232,84468.0,84467.0,0.09389597]
[1742086921933,0.0001695,84469.0,84467.0,0.33067297]
[1742086923998,0.0001695,84469.0,84467.0,0.09389597]
[1742086924413,0.0001695,84469.0,84467.0,0.33067297]
[1742086924822,0.01873108,84469.0,84467.0,0.33067297]
[1742086926330,0.06420495,84471.0,84467.0,0.33067297]
[1742086926586,0.06420495,84471.0,84468.0,0.236773]
[1742086926730,0.236766,84472.0,84468.0,0.236773]
[1742086927076,0.236766,84472.0,84469.0,0.01055351]
[1742086930117,0.2369355,84472.0,84469.0,0.01055351]
[1742086931352,0.25549697,84472.0,84469.0,0.01055351]
[1742086932113,0.3,84471.0,84469.0,0.01055351]
[1742086932333,0.3,84471.0,84467.0,0.320116]
[1742086932531,0.3,84471.0,84467.0,0.083339]
[1742086932532,0.011838,84468.0,84467.0,0.083339]
[1742086932745,0.011838,84468.0,84467.0,0.000339]
[1742086934741,0.311838,84468.0,84467.0,0.000339]
[1742086935417,0.311838,84468.0,84467.0,0.005339]
[1742086935802,0.311838,84468.0,84467.0,0.000339]
[1742086936872,0.31170452,84468.0,84467.0,0.000339]
[1742086938596,0.3,84469.0,84467.0,0.000339]
[1742086938769,0.3,84469.0,84468.0,0.0756]
[1742086939384,0.311838,84469.0,84468.0,0.0756]
[1742086942409,0.3120075,84469.0,84468.0,0.0756]
[1742086946487,0.3120075,84469.0,84468.0,0.08615531]
[1742086947409,0.0001695,84469.0,84468.0,0.08615531]
[1742086947853,0.0001695,84469.0,84468.0,0.32293131]
[1742086948083,0.0001695,84469.0,84468.0,0.33476931]
[1742086949111,0.0001695,84469.0,84468.0,0.32293131]
[1742086949517,0.0001695,84469.0,84468.0,0.32581931]
[1742086960615,0.0001695,84469.0,84468.0,0.08904331]
[1742086964982,0.3001695,84469.0,84468.0,0.08904331]
[1742086965228,0.3120075,84469.0,84468.0,0.01344331]
[1742086965407,0.3120075,84469.0,84468.0,0.002888]
[1742086967269,0.3120075,84469.0,84468.0,0.003227]
[1742086968813,0.3305692,84469.0,84468.0,0.003227]
[1742086970873,0.3305692,84469.0,84468.0,0.01378297]
[1742086973584,0.3305692,84469.0,84468.0,0.003227]
[1742086974609,0.3187312,84469.0,84468.0,0.003227]
[1742086974816,0.0187312,84469.0,84468.0,0.079627]
[1742086975032,0.0187312,84469.0,84468.0,0.10202097]
[1742086975132,0.0187312,84469.0,84468.0,0.15192097]
[1742086975789,0.19159853,84480.0,84475.0,0.236753]
[1742086976157,0.19164001,84480.0,84476.0,0.01054764]
[1742086976270,4.148e-05,84480.0,84476.0,0.01054764]
[1742086976628,4.148e-05,84480.0,84476.0,0.236751]
[1742086976869,4.148e-05,84480.0,84476.0,0.239639]
[1742086977106,4.148e-05,84480.0,84477.0,0.01054484]
[1742086977481,4.148e-05,84480.0,84476.0,0.239639]
[1742086977881,0.30004148,84480.0,84477.0,0.01054484]
[1742086978090,0.30004148,84480.0,84478.0,0.313148]
[1742086978528,0.30004148,84480.0,84479.0,0.01054276]
[1742086978661,0.30021098,84480.0,84479.0,0.01054276]
[1742086978861,0.00021098,84480.0,84479.0,0.01054276]
[1742086980802,0.01877089,84480.0,84479.0,0.01054276]
[1742086983998,0.03060789,84480.0,84479.0,0.01054276]
[1742086984418,0.548582,84479.0,84478.0,0.079288]
[1742086984623,0.548582,84479.0,84478.0,0.002888]
[1742086985233,0.548582,84479.0,84478.0,0.01343137]
[1742086985440,0.548582,84479.0,84478.0,0.002888]
[1742086985637,0.548582,84479.0,84478.0,0.01343137]
[1742086985847,0.548582,84479.0,84478.0,0.002888]
[1742086986071,0.548582,84479.0,84478.0,0.01343137]
[1742086986547,0.548582,84479.0,84478.0,0.002888]
[1742086990906,0.5671433,84479.0,84478.0,0.002888]
[1742086991364,0.5671433,84479.0,84478.0,0.0032268]
[1742087002897,0.5673127,84479.0,84478.0,0.0032268]
[1742087008663,0.3187307,84479.0,84478.0,0.1244268]
[1742087008868,0.3305677,84479.0,84478.0,0.1244268]
[1742087009066,0.5673127,84479.0,84478.0,0.1244268]
[1742087010104,0.5673127,84479.0,84478.0,0.13497279]
[1742087010684,0.3187307,84479.0,84478.0,0.13497279]
[1742087011263,0.3187307,84479.0,84478.0,0.38355779]
[1742087011479,0.3001694,84479.0,84478.0,0.38355779]
[1742087011927,0.3001694,84479.0,84478.0,0.37172079]
[1742087012162,0.0001694,84479.0,84478.0,0.37172079]
[1742087013265,0.2487514,84479.0,84478.0,0.01377279]
[1742087013636,0.2487514,84479.0,84478.0,0.0032268]
[1742087014411,0.56731231,84479.0,84478.0,0.0032268]
[1742087044039,0.56731231,84479.0,84478.0,0.0827268]
[1742087048065,0.56731231,84479.0,84478.0,0.1321268]
[1742087050031,0.5487514,84479.0,84478.0,0.1321268]
[1742087052709,0.56731187,84479.0,84478.0,0.1321268]
[1742087058550,0.56418687,84479.0,84478.0,0.1321268]
[1742087061753,0.56435627,84479.0,84478.0,0.1321268]
[1742087066916,0.01872987,84479.0,84478.0,0.1321268]
[1742087067137,0.01872987,84479.0,84478.0,0.1439638]
[1742087067348,0.0001694,84479.0,84478.0,0.15394937]
[1742087070584,0.01872759,84479.0,84478.0,0.15394937]
[1742087078795,0.01842021,84479.0,84478.0,0.15394937]
[1742087080008,0.01842021,84479.0,84478.0,0.15513302]
[1742087080750,0.01842021,84479.0,84478.0,0.15394937]
[1742087086504,0.01858961,84479.0,84478.0,0.15394937]
[1742087088843,0.01858961,84479.0,84478.0,0.28542937]
[1742087092557,0.01858961,84479.0,84478.0,0.28542937]
[1742087093978,0.01858961,84479.0,84478.0,0.09271237]
[1742087094182,0.01858961,84479.0,84478.0,0.01321237]
[1742087095550,0.03042661,84479.0,84478.0,0.01321237]
[1742087095757,0.0120064,84479.0,84478.0,0.01321237]
[1742087095967,0.0120064,84479.0,84478.0,0.0032268]
[1742087099039,0.03056659,84479.0,84478.0,0.0032268]
[1742087102007,0.03256659,84479.0,84478.0,0.01355907]
[1742087103844,0.02072959,84479.0,84478.0,0.25030707]
[1742087104249,0.02072959,84479.0,84478.0,0.01355907]
[1742087105239,0.01872959,84479.0,84478.0,0.01355907]
[1742087105493,0.03156659,84479.0,84478.0,0.01355907]
[1742087105697,0.03156659,84479.0,84478.0,0.0032268]
[1742087105838,0.03156659,84479.0,84478.0,0.01355907]
[1742087106990,0.03156659,84479.0,84478.0,0.0032268]
[1742087108038,0.03156659,84479.0,84478.0,0.01355907]
[1742087112101,0.03156659,84479.0,84478.0,0.0032268]
[1742087113260,0.0130064,84479.0,84478.0,0.0032268]
[1742087114418,0.3130064,84479.0,84478.0,0.0032268]
[1742087115915,0.33156737,84479.0,84478.0,0.0032268]
[1742087122387,0.0498587,84479.0,84478.0,0.0032268]
[1742087123205,0.03056747,84479.0,84478.0,0.0032268]
[1742087124467,0.33056747,84479.0,84478.0,0.0032268]
[1742087142439,0.4501425,84479.0,84478.0,0.0032268]
[1742087143969,0.8680425,84479.0,84478.0,0.0032268]
[1742087149475,0.74846747,84479.0,84478.0,0.0032268]
[1742087176056,0.76300832,84479.0,84478.0,0.0032268]
[1742087176438,0.74444735,84479.0,84478.0,0.0032268]
[1742087181124,1.17420735,84479.0,84478.0,0.0032268]
[1742087184433,1.00350735,84479.0,84478.0,0.0032268]
[1742087186054,1.00350735,84479.0,84478.0,0.0023908]
[1742087186639,0.92566135,84479.0,84478.0,0.0023908]
[1742087190716,1.04523638,84479.0,84478.0,0.0023908]
[1742087190929,0.92566135,84479.0,84478.0,0.0023908]
[1742087198777,0.548629,84463.0,84462.0,0.0764382]
[1742087199484,0.56719235,84463.0,84462.0,0.0764382]
[1742087203827,0.5908122,84463.0,84462.0,0.0764382]
[1742087206309,0.5908122,84463.0,84462.0,0.0767772]
[1742087208595,0.3421832,84463.0,84462.0,0.0767772]
[1742087208794,0.0421832,84463.0,84462.0,0.0767772]
[1742087209354,0.2908122,84463.0,84462.0,0.0767772]
[1742087209658,0.5908122,84463.0,84462.0,0.0767772]
[1742087211264,1.0087122,84463.0,84462.0,0.0767772]
[1742087212277,1.0087122,84463.0,84462.0,0.000339]
[1742087212483,0.99014885,84463.0,84462.0,0.000339]
[1742087213190,1.0046897,84463.0,84462.0,0.000339]
[1742087213574,1.0066897,84463.0,84462.0,0.000339]
[1742087213981,1.0046897,84463.0,84462.0,0.000339]
[1742087214183,1.0066897,84463.0,84462.0,0.000339]
[1742087215580,1.02525456,84463.0,84462.0,0.000339]
[1742087218612,1.02542406,84463.0,84462.0,0.000339]
[1742087223889,1.02542406,84463.0,84448.0,0.0821]
[1742087223890,0.548661,84452.0,84448.0,0.0821]
[1742087224091,0.548661,84452.0,84448.0,0.06109403]
[1742087224092,0.54867,84449.0,84448.0,0.06109403]
[1742087225221,0.248688,84443.0,84442.0,0.0455]
[1742087225373,0.548688,84443.0,84442.0,0.04591523]
[1742087226145,0.548688,84443.0,84442.0,0.00041523]
[1742087226564,0.56066738,84443.0,84442.0,0.00041523]
[1742087227079,0.57923554,84443.0,84442.0,0.00041523]
[1742087228033,0.57923554,84443.0,84442.0,0.00141523]
[1742087228847,0.57923554,84443.0,84442.0,0.00041523]
[1742087229030,0.99713554,84443.0,84442.0,0.00041523]
[1742087229245,1.00608689,84443.0,84442.0,0.00041523]
[1742087230359,1.00608689,84443.0,84442.0,0.00175423]
[1742087234159,1.00608689,84443.0,84442.0,0.00075423]
[1742087238287,1.14120277,84443.0,84442.0,0.00075423]
[1742087238418,1.71635577,84443.0,84442.0,0.00075423]
[1742087238637,1.72135577,84443.0,84442.0,0.00075423]
[1742087239656,1.70278761,84443.0,84442.0,0.00075423]
[1742087240307,1.70178761,84443.0,84442.0,0.00075423]
[1742087240840,0.011843,84431.0,84430.0,0.06939323]
[1742087240967,0.443843,84431.0,84430.0,0.06939323]
[1742087241169,0.45838385,84431.0,84430.0,0.06943469]
[1742087242228,0.443843,84431.0,84430.0,0.06943469]
[1742087242654,0.46241485,84431.0,84430.0,0.06943469]
[1742087246503,0.8948557,84431.0,84430.0,4.146e-05]
[1742087252794,0.89455964,84431.0,84430.0,4.146e-05]
[1742087254627,0.89455964,84431.0,84430.0,0.00038046]
[1742087259179,0.32638485,84429.0,84423.0,0.0773]
[1742087259374,0.32638485,84429.0,84428.0,0.00021089]
[1742087259623,0.32593645,84429.0,84428.0,0.00021089]
[1742087259933,0.32544174,84429.0,84428.0,0.00021089]
[1742087260135,0.74334174,84429.0,84428.0,0.00021089]
[1742087260354,0.548764,84417.0,84416.0,0.1228]
[1742087260550,0.548764,84417.0,84416.0,0.07744151]
[1742087261723,0.548764,84417.0,84416.0,0.07944151]
[1742087262930,0.548764,84417.0,84416.0,0.00204151]
[1742087263131,0.56733747,84417.0,84416.0,0.00204151]
[1742087264072,0.98523747,84417.0,84416.0,0.00204151]
[1742087266263,0.98523747,84417.0,84416.0,0.00221101]
[1742087275888,0.70171514,84417.0,84416.0,0.00221101]
[1742087276259,0.71356014,84417.0,84416.0,0.00221101]
[1742087276466,0.95047914,84417.0,84416.0,0.00221101]
[1742087282760,0.95047914,84417.0,84416.0,0.08151101]
[1742087282940,0.95047914,84417.0,84416.0,0.12681101]
[1742087289423,0.666664,84417.0,84416.0,0.12681101]
[1742087289726,0.666664,84417.0,84416.0,0.14306661]
[1742087289926,0.966664,84417.0,84416.0,0.14306661]
[1742087291215,0.9670032,84417.0,84416.0,0.14306661]
[1742087292539,0.98557611,84417.0,84416.0,0.14306661]
[1742087293408,0.56767611,84417.0,84416.0,0.14306661]
[1742087294779,0.56767611,84417.0,84416.0,0.12681101]
[1742087297124,0.2792572,84417.0,84416.0,0.12681101]
[1742087297468,0.25583111,84417.0,84416.0,0.12681101]
[1742087298271,0.26767611,84417.0,84416.0,0.12681101]
[1742087299242,0.26767611,84417.0,84416.0,0.14306277]
[1742087300797,0.26767611,84417.0,84416.0,0.12681101]
[1742087308201,0.26767611,84417.0,84416.0,0.08151101]
[1742087311109,0.26767611,84417.0,84416.0,0.00221101]
[1742087311943,0.26767611,84417.0,84416.0,0.00021101]
[1742087312373,0.26767611,84417.0,84416.0,0.00221101]
[1742087314488,0.2491032,84417.0,84416.0,0.00221101]
[1742087314683,0.5491032,84417.0,84416.0,0.00221101]
[1742087315721,0.5491032,84417.0,84416.0,0.00021101]
[1742087316081,0.5491032,84417.0,84416.0,0.00121101]
[1742087317521,0.56767737,84417.0,84416.0,0.00021101]
[1742087317727,0.56767737,84417.0,84416.0,0.00121101]
[1742087317897,0.56767737,84417.0,84416.0,0.00021101]
[1742087318305,0.56767737,84417.0,84416.0,0.00121101]
[1742087319451,0.01857417,84417.0,84416.0,0.00121101]
[1742087320316,0.26733817,84417.0,84416.0,0.00121101]
[1742087322857,0.28187902,84417.0,84416.0,0.00121101]
[1742087324172,0.28187902,84417.0,84416.0,0.00021101]
[1742087326019,0.58204862,84417.0,84416.0,0.00021101]
[1742087333918,0.58204862,84417.0,84416.0,0.00021101]
[1742087336158,0.56750777,84417.0,84416.0,0.00021101]
[1742087371085,0.56750777,84417.0,84416.0,0.07791101]
[1742087371270,0.01874377,84417.0,84416.0,0.07791101]
[1742087371499,0.0120146,84417.0,84416.0,0.07791101]
[1742087371678,0.3120146,84417.0,84416.0,0.07791101]
[1742087372078,0.3001696,84417.0,84416.0,0.07791101]
[1742087372221,0.3001696,84417.0,84416.0,0.09055882]
[1742087373821,0.0001696,84417.0,84416.0,0.09055882]
[1742087374201,0.018743,84417.0,84416.0,0.09055882]
[1742087374773,0.018743,84417.0,84416.0,0.07791101]
[1742087375114,0.018743,84417.0,84416.0,0.09055018]
[1742087380388,0.030588,84417.0,84416.0,0.09055018]
[1742087380739,0.018743,84417.0,84416.0,0.09055018]
[1742087385673,0.318743,84417.0,84416.0,0.09055018]
[1742087385879,0.018743,84417.0,84416.0,0.09055018]
[1742087397043,0.318743,84417.0,84416.0,0.09055018]
[1742087400332,0.330588,84417.0,84416.0,0.09055018]
[1742087400762,0.330588,84417.0,84416.0,0.07791101]
[1742087402963,0.330588,84417.0,84416.0,0.09054908]
[1742087403530,0.011845,84417.0,84416.0,0.09054908]
[1742087403948,0.03041838,84417.0,84416.0,0.09054908]
[1742087404156,0.011845,84417.0,84416.0,0.09054908]
[1742087406384,0.011845,84418.0,84416.0,0.09054908]
[1742087406948,0.03041829,84418.0,84416.0,0.09054908]
[1742087407278,0.0001695,84417.0,84416.0,0.09054908]
[1742087407914,0.2489335,84417.0,84416.0,0.09054908]
[1742087408319,0.2489335,84417.0,84416.0,0.07791101]
[1742087409208,0.2489335,84417.0,84416.0,0.09054906]
[1742087415134,0.2370885,84417.0,84416.0,0.09054906]
[1742087415338,0.0001695,84417.0,84416.0,0.09054906]
[1742087422974,0.24876,84419.0,84416.0,0.09054906]
[1742087423185,0.01857329,84417.0,84416.0,0.09054906]
[1742087423479,0.24876,84419.0,84416.0,0.09054906]
[1742087424136,0.011845,84420.0,84416.0,0.09054906]
[1742087425985,0.19159853,84430.0,84417.0,0.236917]
[1742087425986,0.3,84424.0,84417.0,0.236917]
[1742087426364,0.01857305,84420.0,84418.0,0.01263518]
[1742087426865,0.01857305,84420.0,84419.0,0.0776]
[1742087427281,0.01857305,84420.0,84419.0,0.09023409]
[1742087428106,0.01857305,84420.0,84419.0,0.09123409]
[1742087430662,0.01874255,84420.0,84419.0,0.09123409]
[1742087442852,0.01874255,84420.0,84419.0,0.09157309]
[1742087448482,0.0001695,84420.0,84419.0,0.09157309]
[1742087450763,0.2489245,84420.0,84419.0,0.01397309]
[1742087451178,0.2489245,84420.0,84419.0,0.001339]
[1742087451345,0.24875,84423.0,84419.0,0.001339]
[1742087451511,0.01857328,84420.0,84419.0,0.001339]
[1742087451710,0.26732828,84420.0,84419.0,0.001339]
[1742087451966,0.26732828,84420.0,84419.0,0.000339]
[1742087452397,0.26732828,84420.0,84419.0,0.001339]
[1742087452913,0.01857328,84420.0,84419.0,0.001339]
[1742087453319,0.01857328,84420.0,84419.0,0.0160224]
[1742087453543,0.01857328,84420.0,84419.0,0.001339]
[1742087453796,0.01857328,84420.0,84419.0,0.01602398]
[1742087455115,0.03041828,84420.0,84419.0,0.01602398]
[1742087455628,0.03075728,84420.0,84419.0,0.01602398]
[1742087459860,0.04303166,84420.0,84419.0,0.01602398]
[1742087461821,0.03118666,84420.0,84419.0,0.01602398]
[1742087463430,0.04303166,84420.0,84419.0,0.01602398]
[1742087465175,0.01891228,84420.0,84419.0,0.01602398]
[1742087465379,0.01891228,84420.0,84419.0,0.33143698]
[1742087466193,0.236901,84424.0,84419.0,0.33143698]
[1742087466368,0.01857308,84420.0,84419.0,0.33143698]
[1742087466742,0.01207507,84421.0,84419.0,0.33143698]
[1742087467073,0.248745,84424.0,84419.0,0.33143698]
[1742087467725,0.0003388,84422.0,84419.0,0.33043698]
[1742087468025,0.001,84421.0,84419.0,0.33043698]
[1742087468434,0.0003388,84422.0,84419.0,0.33043698]
[1742087468733,0.0003388,84422.0,84421.0,0.236907]
[1742087468937,0.0003388,84422.0,84421.0,0.2380914]
[1742087469133,0.0003388,84422.0,84421.0,0.25277331]
[1742087469300,0.0003388,84422.0,84421.0,0.25158891]
[1742087470415,0.0003388,84422.0,84421.0,0.25058891]
[1742087471067,0.01891127,84422.0,84421.0,0.01468191]
[1742087471496,0.01891127,84422.0,84420.0,0.236908]
[1742087471647,0.01891127,84422.0,84421.0,0.01468191]
[1742087471856,0.01891127,84422.0,84419.0,0.362352]
[1742087472054,0.01891127,84422.0,84421.0,0.01468191]
[1742087472253,0.01891127,84422.0,84420.0,0.25159202]
[1742087472496,0.01891127,84422.0,84421.0,0.01468191]
[1742087472719,0.01891127,84422.0,84420.0,0.236909]
[1742087472896,0.01891127,84422.0,84421.0,0.01468191]
[1742087473103,0.01891127,84422.0,84420.0,0.236909]
[1742087473339,0.01891127,84422.0,84421.0,0.01468191]
[1742087473674,0.01891127,84422.0,84420.0,0.236909]
[1742087473874,0.01891127,84422.0,84421.0,0.01468191]
[1742087474071,0.01891127,84422.0,84420.0,0.236909]
[1742087474275,0.01891127,84422.0,84421.0,0.01568191]
[1742087474478,0.01891127,84422.0,84421.0,0.01468191]
[1742087474775,0.01891127,84422.0,84420.0,0.237909]
[1742087474981,0.01891127,84422.0,84421.0,0.01468191]
[1742087475429,0.01891127,84422.0,84420.0,0.236909]
[1742087475595,0.01891127,84422.0,84421.0,0.01468191]
[1742087475992,0.01891127,84422.0,84420.0,0.236909]
[1742087476188,0.01891127,84422.0,84421.0,0.01468191]
[1742087476864,0.01891127,84422.0,84420.0,0.236909]
[1742087477081,0.01891127,84422.0,84421.0,0.01468191]
[1742087477274,0.01891127,84422.0,84420.0,0.236909]
[1742087477500,0.01891127,84422.0,84421.0,0.01468191]
[1742087477835,0.01891127,84422.0,84420.0,0.236909]
[1742087478035,0.01891127,84422.0,84421.0,0.01468191]
[1742087478303,0.01891127,84422.0,84420.0,0.236909]
[1742087478455,0.01891127,84422.0,84421.0,0.01468191]
[1742087478653,0.01891127,84422.0,84420.0,0.236909]
[1742087478852,0.01891127,84422.0,84421.0,0.01468191]
[1742087479255,0.01891127,84422.0,84420.0,0.236909]
[1742087479463,0.01891127,84422.0,84421.0,0.01468191]
[1742087479689,0.01891127,84422.0,84420.0,0.236909]
[1742087479844,0.01891127,84422.0,84421.0,0.01468191]
[1742087480048,0.01891127,84422.0,84420.0,0.236909]
[1742087480250,0.01891127,84422.0,84421.0,0.01468191]
[1742087480448,0.01891127,84422.0,84420.0,0.236909]
[1742087480671,0.01891127,84422.0,84421.0,0.01468191]
[1742087481177,0.01891127,84422.0,84420.0,0.236909]
[1742087481379,0.01891127,84422.0,84421.0,0.01468191]